[Event "Titled Tuesday Blitz November 15 Early 2022"]
[White "Kostiukov, Alexandr"]
[Black "Ghosh, Chanchal Kumer"]
[WhiteFideId "14108100"]
[BlackFideId "10201858"]
[WhiteElo "2202"]
[BlackElo "2058"]
[Result "0-1"]
[Round "06"]
[TimeControl "180+1"]
[Date "2022.11.16"]
[WhiteClock "0:00:02"]
[BlackClock "0:00:10"]

1. g3 {[%clk 0:03:00]}  d5 {[%clk 0:02:58]} 2. Bg2 {[%clk 0:03:01]}  e6 {[%clk 0:02:58]} 3. d3 {[%clk 0:03:02]}  Nf6 {[%clk 0:02:59]} 4. e4 {[%clk 0:03:02]}  c5 {[%clk 0:03:00]} 5. Qe2 {[%clk 0:03:01]}  Be7 {[%clk 0:02:59]} 6. e5 {[%clk 0:03:01]}  Nfd7 {[%clk 0:02:59]} 7. Nf3 {[%clk 0:03:02]}  O-O {[%clk 0:02:59]} 8. O-O {[%clk 0:03:01]}  Nc6 {[%clk 0:02:59]} 9. c4 {[%clk 0:03:01]}  Qc7 {[%clk 0:02:45]} 10. cxd5 {[%clk 0:02:52]}  exd5 {[%clk 0:02:46]} 11. e6 {[%clk 0:02:52]}  Nf6 {[%clk 0:02:42]} 12. exf7+ {[%clk 0:02:51]}  Rxf7 {[%clk 0:02:42]} 13. Ng5 {[%clk 0:02:34]}  Nd4 {[%clk 0:02:41]} 14. Qd1 {[%clk 0:02:29]}  Rf8 {[%clk 0:02:30]} 15. Nc3 {[%clk 0:02:25]}  Bg4 {[%clk 0:02:27]} 16. Nxd5 {[%clk 0:02:15]}  Qd7 {[%clk 0:02:02]} 17. Nxe7+ {[%clk 0:02:06]}  Qxe7 {[%clk 0:02:01]} 18. f3 {[%clk 0:02:03]}  Bh5 {[%clk 0:01:59]} 19. Ne4 {[%clk 0:02:01]}  Nd5 {[%clk 0:01:52]} 20. Bg5 {[%clk 0:01:56]}  Qc7 {[%clk 0:01:46]} 21. Rc1 {[%clk 0:01:41]}  b6 {[%clk 0:01:35]} 22. Nc3 {[%clk 0:01:24]}  Nf6 {[%clk 0:01:19]} 23. Bf4 {[%clk 0:01:10]}  Qd7 {[%clk 0:01:12]} 24. Ne2 {[%clk 0:01:01]}  Ne6 {[%clk 0:01:03]} 25. Be3 {[%clk 0:00:54]}  Rad8 {[%clk 0:01:01]} 26. Qb3 {[%clk 0:00:47]}  Kh8 {[%clk 0:00:54]} 27. Rcd1 {[%clk 0:00:38]}  Nd5 {[%clk 0:00:52]} 28. Bc1 {[%clk 0:00:33]}  Rde8 {[%clk 0:00:49]} 29. Nc3 {[%clk 0:00:30]}  Nb4 {[%clk 0:00:37]} 30. Ne4 {[%clk 0:00:29]}  Nd4 {[%clk 0:00:34]} 31. Qa3 {[%clk 0:00:23]}  Nxf3+ {[%clk 0:00:29]} 32. Kh1 {[%clk 0:00:20]}  Nd4 {[%clk 0:00:20]} 33. Bf4 {[%clk 0:00:17]}  Bxd1 {[%clk 0:00:18]} 34. Rxd1 {[%clk 0:00:15]}  h6 {[%clk 0:00:17]} 35. h4 {[%clk 0:00:12]}  Ne2 {[%clk 0:00:16]} 36. Rf1 {[%clk 0:00:02]}  Qxd3 {[%clk 0:00:13]} 37. Qxd3 {[%clk 0:00:01]}  Nxd3 {[%clk 0:00:14]} 38. Bd6 {[%clk 0:00:01]}  Rxf1+ {[%clk 0:00:11]} 39. Bxf1 {[%clk 0:00:02]}  Rxe4 {[%clk 0:00:10]} 0-1


[Site "https://www.chess.com"]

[Event "Titled Tuesday Blitz November 15 Early 2022"]
[White "Krzyzanowski, Marcin"]
[Black "Sharifov, Mekhriddin"]
[WhiteFideId "1132199"]
[BlackFideId "14701545"]
[WhiteElo "2435"]
[BlackElo "2109"]
[Result "0-1"]
[Round "06"]
[TimeControl "180+1"]
[Date "2022.11.16"]
[WhiteClock "0:00:27"]
[BlackClock "0:00:26"]

1. e4 {[%clk 0:03:00]}  c5 {[%clk 0:02:59]} 2. Nc3 {[%clk 0:02:59]}  a6 {[%clk 0:02:59]} 3. d4 {[%clk 0:02:58]}  cxd4 {[%clk 0:02:59]} 4. Qxd4 {[%clk 0:02:59]}  Nc6 {[%clk 0:03:00]} 5. Qd2 {[%clk 0:03:00]}  g6 {[%clk 0:02:59]} 6. b3 {[%clk 0:03:00]}  Bh6 {[%clk 0:02:59]} 7. f4 {[%clk 0:03:00]}  e5 {[%clk 0:02:56]} 8. Nd5 {[%clk 0:02:59]}  d6 {[%clk 0:02:42]} 9. Bb2 {[%clk 0:02:51]}  Be6 {[%clk 0:02:39]} 10. Qf2 {[%clk 0:02:44]}  Bxd5 {[%clk 0:02:18]} 11. exd5 {[%clk 0:02:45]}  Qa5+ {[%clk 0:02:19]} 12. c3 {[%clk 0:02:23]}  Qxd5 {[%clk 0:02:17]} 13. Bc4 {[%clk 0:02:16]}  Qe4+ {[%clk 0:02:08]} 14. Ne2 {[%clk 0:02:16]}  Bxf4 {[%clk 0:02:07]} 15. Rd1 {[%clk 0:02:16]}  Nge7 {[%clk 0:01:47]} 16. O-O {[%clk 0:02:11]}  Be3 {[%clk 0:01:45]} 17. Ng3 {[%clk 0:01:38]}  Bxf2+ {[%clk 0:01:24]} 18. Rxf2 {[%clk 0:01:39]}  Qe3 {[%clk 0:01:19]} 19. Bxf7+ {[%clk 0:01:36]}  Kd7 {[%clk 0:01:17]} 20. Bc1 {[%clk 0:01:37]}  Qxc3 {[%clk 0:01:12]} 21. Ne4 {[%clk 0:01:34]}  Qb4 {[%clk 0:01:01]} 22. Nf6+ {[%clk 0:01:09]}  Kc7 {[%clk 0:00:57]} 23. Bh6 {[%clk 0:01:00]}  Rhf8 {[%clk 0:00:41]} 24. Bxf8 {[%clk 0:00:59]}  Rxf8 {[%clk 0:00:42]} 25. Ne8+ {[%clk 0:01:00]}  Kb8 {[%clk 0:00:39]} 26. Rxd6 {[%clk 0:00:51]}  Nf5 {[%clk 0:00:32]} 27. Rf6 {[%clk 0:00:47]}  Ncd4 {[%clk 0:00:25]} 28. Bd5 {[%clk 0:00:27]}  Qe1+ {[%clk 0:00:25]} 29. Rf1 {[%clk 0:00:27]}  Ne2+ {[%clk 0:00:26]} 0-1


[Site "https://www.chess.com"]

[Event "Titled Tuesday Blitz November 15 Early 2022"]
[White "Lauridsen, Jesper Morch"]
[Black "Desideri, Ricardo Maruchi"]
[WhiteFideId "1401890"]
[BlackFideId "2110440"]
[WhiteElo "2224"]
[BlackElo "1945"]
[Result "1-0"]
[Round "06"]
[TimeControl "180+1"]
[Date "2022.11.16"]
[WhiteClock "0:01:07"]
[BlackClock "0:00:41"]

1. e4 {[%clk 0:02:56]}  c5 {[%clk 0:02:58]} 2. c3 {[%clk 0:02:55]}  g6 {[%clk 0:02:54]} 3. d4 {[%clk 0:02:54]}  cxd4 {[%clk 0:02:55]} 4. cxd4 {[%clk 0:02:54]}  d5 {[%clk 0:02:55]} 5. exd5 {[%clk 0:02:53]}  Nf6 {[%clk 0:02:54]} 6. Nc3 {[%clk 0:02:52]}  Nxd5 {[%clk 0:02:44]} 7. Bc4 {[%clk 0:02:52]}  Nb6 {[%clk 0:02:43]} 8. Bb3 {[%clk 0:02:49]}  Bg7 {[%clk 0:02:42]} 9. Nf3 {[%clk 0:02:47]}  Bg4 {[%clk 0:02:39]} 10. Bxf7+ {[%clk 0:02:45]}  Kf8 {[%clk 0:02:18]} 11. h3 {[%clk 0:02:33]}  Bxf3 {[%clk 0:02:02]} 12. Qxf3 {[%clk 0:02:31]}  Bf6 {[%clk 0:01:53]} 13. Bb3 {[%clk 0:02:16]}  Qxd4 {[%clk 0:01:46]} 14. Bh6+ {[%clk 0:02:04]}  Ke8 {[%clk 0:01:41]} 15. O-O {[%clk 0:01:58]}  Nc6 {[%clk 0:01:37]} 16. Rad1 {[%clk 0:01:56]}  Qh4 {[%clk 0:01:10]} 17. Bf4 {[%clk 0:01:38]}  Kf8 {[%clk 0:01:04]} 18. Rfe1 {[%clk 0:01:33]}  Kg7 {[%clk 0:00:59]} 19. Ne4 {[%clk 0:01:23]}  Nd4 {[%clk 0:00:56]} 20. Rxd4 {[%clk 0:01:13]}  Bxd4 {[%clk 0:00:51]} 21. Bg5 {[%clk 0:01:09]}  Qh5 {[%clk 0:00:41]} 22. Qf7# {[%clk 0:01:07]} 1-0


[Site "https://www.chess.com"]

[Event "Titled Tuesday Blitz November 15 Early 2022"]
[White "Leiva, Gianmarco"]
[Black "Grapsa, Georgia"]
[WhiteFideId "3804399"]
[BlackFideId "4206436"]
[WhiteElo "2286"]
[BlackElo "1877"]
[Result "1-0"]
[Round "06"]
[TimeControl "180+1"]
[Date "2022.11.16"]
[WhiteClock "0:00:11"]
[BlackClock "0:00:07"]

1. e4 {[%clk 0:02:48]}  d5 {[%clk 0:02:55]} 2. exd5 {[%clk 0:02:48]}  Qxd5 {[%clk 0:02:56]} 3. Nc3 {[%clk 0:02:48]}  Qa5 {[%clk 0:02:55]} 4. d4 {[%clk 0:02:48]}  c6 {[%clk 0:02:54]} 5. Bc4 {[%clk 0:02:46]}  Nf6 {[%clk 0:02:47]} 6. Nf3 {[%clk 0:02:39]}  Bf5 {[%clk 0:02:46]} 7. O-O {[%clk 0:02:34]}  e6 {[%clk 0:02:45]} 8. Bd2 {[%clk 0:02:28]}  Qc7 {[%clk 0:02:41]} 9. h3 {[%clk 0:02:18]}  Nbd7 {[%clk 0:02:39]} 10. Nh4 {[%clk 0:02:17]}  Bg6 {[%clk 0:02:39]} 11. Nxg6 {[%clk 0:02:11]}  hxg6 {[%clk 0:02:39]} 12. Re1 {[%clk 0:02:10]}  O-O-O {[%clk 0:02:38]} 13. Bb3 {[%clk 0:02:07]}  Nb6 {[%clk 0:02:29]} 14. Qf3 {[%clk 0:01:58]}  Rxd4 {[%clk 0:02:25]} 15. Be3 {[%clk 0:01:56]}  Rd8 {[%clk 0:02:24]} 16. a4 {[%clk 0:01:52]}  Kb8 {[%clk 0:02:13]} 17. Ne4 {[%clk 0:01:39]}  Nbd5 {[%clk 0:01:49]} 18. Bg5 {[%clk 0:01:26]}  Be7 {[%clk 0:01:42]} 19. Bxd5 {[%clk 0:01:25]}  cxd5 {[%clk 0:01:09]} 20. Nxf6 {[%clk 0:01:20]}  gxf6 {[%clk 0:01:07]} 21. Bxf6 {[%clk 0:01:20]}  Bxf6 {[%clk 0:01:07]} 22. Qxf6 {[%clk 0:01:21]}  Rh5 {[%clk 0:01:05]} 23. Re2 {[%clk 0:00:55]}  Rf5 {[%clk 0:01:03]} 24. Qd4 {[%clk 0:00:55]}  Rc8 {[%clk 0:01:01]} 25. c3 {[%clk 0:00:54]}  Qc4 {[%clk 0:00:59]} 26. Qe3 {[%clk 0:00:54]}  Qf4 {[%clk 0:00:42]} 27. Qd3 {[%clk 0:00:44]}  Qc4 {[%clk 0:00:40]} 28. Qd2 {[%clk 0:00:39]}  Qf4 {[%clk 0:00:38]} 29. Re3 {[%clk 0:00:33]}  g5 {[%clk 0:00:27]} 30. Qe2 {[%clk 0:00:32]}  Qc4 {[%clk 0:00:26]} 31. Qh5 {[%clk 0:00:28]}  g4 {[%clk 0:00:20]} 32. Qxg4 {[%clk 0:00:26]}  Qxg4 {[%clk 0:00:19]} 33. hxg4 {[%clk 0:00:27]}  Rf4 {[%clk 0:00:19]} 34. f3 {[%clk 0:00:25]}  Rcc4 {[%clk 0:00:19]} 35. a5 {[%clk 0:00:24]}  a6 {[%clk 0:00:19]} 36. Kf2 {[%clk 0:00:24]}  Ra4 {[%clk 0:00:16]} 37. Ree1 {[%clk 0:00:23]}  Rac4 {[%clk 0:00:14]} 38. Kg3 {[%clk 0:00:23]}  Rf6 {[%clk 0:00:13]} 39. Kh4 {[%clk 0:00:20]}  Rg6 {[%clk 0:00:14]} 40. Re5 {[%clk 0:00:18]}  f5 {[%clk 0:00:13]} 41. Kg3 {[%clk 0:00:15]}  fxg4 {[%clk 0:00:13]} 42. f4 {[%clk 0:00:16]}  Rf6 {[%clk 0:00:12]} 43. Rf1 {[%clk 0:00:16]}  Kc7 {[%clk 0:00:12]} 44. Kxg4 {[%clk 0:00:15]}  Kd6 {[%clk 0:00:13]} 45. g3 {[%clk 0:00:13]}  Rc5 {[%clk 0:00:13]} 46. Ra1 {[%clk 0:00:12]}  Rc4 {[%clk 0:00:12]} 47. Rh5 {[%clk 0:00:12]}  d4 {[%clk 0:00:11]} 48. Rd1 {[%clk 0:00:11]}  Ke7 {[%clk 0:00:07]} 49. Rxd4 {[%clk 0:00:09]}  Rxd4 {[%clk 0:00:07]} 50. cxd4 {[%clk 0:00:10]}  Rf8 {[%clk 0:00:07]} 51. Rh7+ {[%clk 0:00:10]}  Kd6 {[%clk 0:00:06]} 52. Rxb7 {[%clk 0:00:10]}  Rc8 {[%clk 0:00:07]} 53. Rb6+ {[%clk 0:00:10]}  Kd5 {[%clk 0:00:07]} 54. Rxa6 {[%clk 0:00:11]}  Rc2 {[%clk 0:00:07]} 55. b4 {[%clk 0:00:10]}  Rb2 {[%clk 0:00:06]} 56. Rb6 {[%clk 0:00:10]}  Rd2 {[%clk 0:00:06]} 57. a6 {[%clk 0:00:11]}  Rxd4 {[%clk 0:00:07]} 58. a7 {[%clk 0:00:11]} 1-0


[Site "https://www.chess.com"]

[Event "Titled Tuesday Blitz November 15 Early 2022"]
[White "Levine, David"]
[Black "Melikhov, Evgeny V."]
[WhiteFideId "2011611"]
[BlackFideId "4122046"]
[WhiteElo "2161"]
[BlackElo "2169"]
[Result "0-1"]
[Round "06"]
[TimeControl "180+1"]
[Date "2022.11.16"]
[WhiteClock "0:01:16"]
[BlackClock "0:01:31"]

1. d4 {[%clk 0:03:00]}  Nf6 {[%clk 0:02:59]} 2. c4 {[%clk 0:03:00]}  e6 {[%clk 0:02:59]} 3. g3 {[%clk 0:03:00]}  d5 {[%clk 0:02:59]} 4. Bg2 {[%clk 0:03:00]}  dxc4 {[%clk 0:02:59]} 5. Nf3 {[%clk 0:02:59]}  Nc6 {[%clk 0:02:59]} 6. Qa4 {[%clk 0:02:58]}  Bb4+ {[%clk 0:02:57]} 7. Bd2 {[%clk 0:02:51]}  Bd6 {[%clk 0:02:57]} 8. Na3 {[%clk 0:02:45]}  O-O {[%clk 0:02:50]} 9. Nxc4 {[%clk 0:02:44]}  a6 {[%clk 0:02:46]} 10. Nxd6 {[%clk 0:02:42]}  cxd6 {[%clk 0:02:46]} 11. O-O {[%clk 0:02:39]}  b5 {[%clk 0:02:37]} 12. Qb3 {[%clk 0:02:34]}  Bb7 {[%clk 0:02:20]} 13. a4 {[%clk 0:02:30]}  Na5 {[%clk 0:02:13]} 14. Bxa5 {[%clk 0:02:13]}  Qxa5 {[%clk 0:02:12]} 15. axb5 {[%clk 0:01:58]}  Qxb5 {[%clk 0:02:12]} 16. Qxb5 {[%clk 0:01:52]}  axb5 {[%clk 0:02:11]} 17. Nd2 {[%clk 0:01:52]}  Bxg2 {[%clk 0:02:10]} 18. Kxg2 {[%clk 0:01:52]}  Rfc8 {[%clk 0:01:58]} 19. Rxa8 {[%clk 0:01:39]}  Rxa8 {[%clk 0:01:57]} 20. Rc1 {[%clk 0:01:38]}  Kf8 {[%clk 0:01:57]} 21. Rc6 {[%clk 0:01:34]}  Ra2 {[%clk 0:01:46]} 22. Rc2 {[%clk 0:01:19]}  Ke7 {[%clk 0:01:44]} 23. Nb3 {[%clk 0:01:19]}  Kd7 {[%clk 0:01:36]} 24. f3 {[%clk 0:01:18]}  Nd5 {[%clk 0:01:32]} 25. e4 {[%clk 0:01:16]}  Ne3+ {[%clk 0:01:31]} 0-1


[Site "https://www.chess.com"]

[Event "Titled Tuesday Blitz November 15 Early 2022"]
[White "Levitan, Caleb Levi"]
[Black "Kozak, Antoni"]
[WhiteFideId "14332620"]
[BlackFideId "21832030"]
[WhiteElo "1963"]
[BlackElo "2447"]
[Result "0-1"]
[Round "06"]
[TimeControl "180+1"]
[Date "2022.11.16"]
[WhiteClock "0:00:01"]
[BlackClock "0:00:04"]

1. e4 {[%clk 0:03:00]}  c5 {[%clk 0:02:55]} 2. Nf3 {[%clk 0:03:01]}  e6 {[%clk 0:02:56]} 3. d4 {[%clk 0:02:59]}  cxd4 {[%clk 0:02:56]} 4. Nxd4 {[%clk 0:03:00]}  a6 {[%clk 0:02:57]} 5. c4 {[%clk 0:02:59]}  Nf6 {[%clk 0:02:55]} 6. Nc3 {[%clk 0:02:59]}  Bb4 {[%clk 0:02:55]} 7. Qd3 {[%clk 0:02:58]}  d5 {[%clk 0:02:55]} 8. exd5 {[%clk 0:02:46]}  exd5 {[%clk 0:02:55]} 9. Bg5 {[%clk 0:02:37]}  O-O {[%clk 0:02:52]} 10. Be2 {[%clk 0:02:35]}  h6 {[%clk 0:02:32]} 11. Bxf6 {[%clk 0:02:33]}  Qxf6 {[%clk 0:02:32]} 12. O-O {[%clk 0:02:30]}  dxc4 {[%clk 0:02:15]} 13. Qxc4 {[%clk 0:02:27]}  Bd6 {[%clk 0:02:09]} 14. Bf3 {[%clk 0:01:55]}  Nd7 {[%clk 0:01:33]} 15. Ne4 {[%clk 0:01:48]}  Qe5 {[%clk 0:01:31]} 16. Nxd6 {[%clk 0:01:44]}  Qxd6 {[%clk 0:01:32]} 17. Rfe1 {[%clk 0:01:39]}  Ne5 {[%clk 0:01:30]} 18. Qc3 {[%clk 0:01:10]}  Nxf3+ {[%clk 0:01:29]} 19. Nxf3 {[%clk 0:01:10]}  Be6 {[%clk 0:01:20]} 20. Rad1 {[%clk 0:01:09]}  Qb6 {[%clk 0:01:16]} 21. b3 {[%clk 0:01:02]}  Rac8 {[%clk 0:01:11]} 22. Qb2 {[%clk 0:00:58]}  Rfd8 {[%clk 0:01:07]} 23. Nd4 {[%clk 0:00:47]}  Bg4 {[%clk 0:01:01]} 24. Rd2 {[%clk 0:00:36]}  Re8 {[%clk 0:00:59]} 25. Rf1 {[%clk 0:00:23]}  Rcd8 {[%clk 0:00:53]} 26. h3 {[%clk 0:00:22]}  Bc8 {[%clk 0:00:37]} 27. Rfd1 {[%clk 0:00:18]}  Qg6 {[%clk 0:00:36]} 28. Kh2 {[%clk 0:00:10]}  Qd6+ {[%clk 0:00:28]} 29. Kg1 {[%clk 0:00:09]}  Qg6 {[%clk 0:00:24]} 30. Kh2 {[%clk 0:00:07]}  Rd5 {[%clk 0:00:24]} 31. Nf3 {[%clk 0:00:05]}  Qd6+ {[%clk 0:00:11]} 32. Kh1 {[%clk 0:00:03]}  Rxd2 {[%clk 0:00:11]} 33. Rxd2 {[%clk 0:00:04]}  Qc6 {[%clk 0:00:10]} 34. Rc2 {[%clk 0:00:02]}  Qd5 {[%clk 0:00:09]} 35. Rd2 {[%clk 0:00:02]}  Qh5 {[%clk 0:00:08]} 36. Qc3 {[%clk 0:00:01]}  Be6 {[%clk 0:00:04]} 0-1


[Site "https://www.chess.com"]

[Event "Titled Tuesday Blitz November 15 Early 2022"]
[White "Lohani, Sujana"]
[Black "Abhishek, Das"]
[WhiteFideId "12311987"]
[BlackFideId "5013348"]
[WhiteElo "1691"]
[BlackElo "2230"]
[Result "0-1"]
[Round "06"]
[TimeControl "180+1"]
[Date "2022.11.16"]
[WhiteClock "0:00:02"]
[BlackClock "0:01:23"]

1. d4 {[%clk 0:03:00]}  d5 {[%clk 0:02:51]} 2. Nf3 {[%clk 0:03:01]}  Nf6 {[%clk 0:02:49]} 3. c4 {[%clk 0:03:02]}  e6 {[%clk 0:02:48]} 4. g3 {[%clk 0:03:02]}  Bb4+ {[%clk 0:02:42]} 5. Nbd2 {[%clk 0:03:00]}  O-O {[%clk 0:02:39]} 6. Bg2 {[%clk 0:02:59]}  c6 {[%clk 0:02:36]} 7. O-O {[%clk 0:02:58]}  b6 {[%clk 0:02:34]} 8. Qc2 {[%clk 0:02:57]}  Bb7 {[%clk 0:02:33]} 9. a3 {[%clk 0:02:54]}  Be7 {[%clk 0:02:31]} 10. Rd1 {[%clk 0:02:49]}  Nbd7 {[%clk 0:02:31]} 11. e4 {[%clk 0:02:47]}  dxe4 {[%clk 0:02:30]} 12. Nxe4 {[%clk 0:02:47]}  c5 {[%clk 0:02:30]} 13. dxc5 {[%clk 0:02:45]}  Bxe4 {[%clk 0:02:28]} 14. Qe2 {[%clk 0:02:25]}  Bxc5 {[%clk 0:02:27]} 15. Bg5 {[%clk 0:02:18]}  Bc6 {[%clk 0:02:18]} 16. Ne5 {[%clk 0:02:10]}  Bxg2 {[%clk 0:02:18]} 17. Rxd7 {[%clk 0:01:55]}  Qc8 {[%clk 0:02:07]} 18. Rd2 {[%clk 0:01:03]}  Bb7 {[%clk 0:01:42]} 19. Bxf6 {[%clk 0:00:36]}  gxf6 {[%clk 0:01:41]} 20. Ng4 {[%clk 0:00:36]}  Qc6 {[%clk 0:01:29]} 21. Nxf6+ {[%clk 0:00:29]}  Kh8 {[%clk 0:01:28]} 22. Rd5 {[%clk 0:00:05]}  exd5 {[%clk 0:01:26]} 23. Qe5 {[%clk 0:00:02]}  Qd6 {[%clk 0:01:23]} 0-1


[Site "https://www.chess.com"]

[Event "Titled Tuesday Blitz November 15 Early 2022"]
[White "Mahdavi, Reza"]
[Black "Andreikin, Dmitry"]
[WhiteFideId "12595926"]
[BlackFideId "4158814"]
[WhiteElo "2240"]
[BlackElo "2736"]
[Result "0-1"]
[Round "06"]
[TimeControl "180+1"]
[Date "2022.11.15"]
[WhiteClock "0:00:43"]
[BlackClock "0:00:55"]

1. e4 {[%clk 0:03:00]}  c5 {[%clk 0:02:59]} 2. Nf3 {[%clk 0:02:59]}  e6 {[%clk 0:02:59]} 3. c3 {[%clk 0:02:59]}  d5 {[%clk 0:02:56]} 4. exd5 {[%clk 0:03:00]}  Qxd5 {[%clk 0:02:57]} 5. d4 {[%clk 0:03:00]}  Nf6 {[%clk 0:02:57]} 6. Na3 {[%clk 0:03:00]}  Qd8 {[%clk 0:02:58]} 7. Nc2 {[%clk 0:02:51]}  Be7 {[%clk 0:02:56]} 8. Bd3 {[%clk 0:02:48]}  O-O {[%clk 0:02:56]} 9. O-O {[%clk 0:02:48]}  Nbd7 {[%clk 0:02:55]} 10. a4 {[%clk 0:02:45]}  b6 {[%clk 0:02:55]} 11. a5 {[%clk 0:02:45]}  bxa5 {[%clk 0:02:55]} 12. Bf4 {[%clk 0:02:42]}  Bb7 {[%clk 0:02:55]} 13. h3 {[%clk 0:02:37]}  Qb6 {[%clk 0:02:44]} 14. Qe2 {[%clk 0:02:29]}  Nd5 {[%clk 0:02:38]} 15. Bd2 {[%clk 0:02:22]}  Rac8 {[%clk 0:02:34]} 16. Na3 {[%clk 0:02:20]}  cxd4 {[%clk 0:02:24]} 17. Nxd4 {[%clk 0:02:18]}  Bxa3 {[%clk 0:02:20]} 18. Rxa3 {[%clk 0:02:15]}  Nc5 {[%clk 0:02:20]} 19. Bb1 {[%clk 0:02:01]}  Ba6 {[%clk 0:02:09]} 20. c4 {[%clk 0:02:01]}  Qxb2 {[%clk 0:02:08]} 21. Nc2 {[%clk 0:01:49]}  Nb3 {[%clk 0:01:51]} 22. Ra2 {[%clk 0:01:39]}  Qf6 {[%clk 0:01:47]} 23. Na3 {[%clk 0:01:40]}  Nxd2 {[%clk 0:01:43]} 24. Qxd2 {[%clk 0:01:38]}  Nb4 {[%clk 0:01:40]} 25. Rb2 {[%clk 0:01:37]}  Rfd8 {[%clk 0:01:40]} 26. Qc1 {[%clk 0:01:35]}  g6 {[%clk 0:01:30]} 27. Rb3 {[%clk 0:01:30]}  Rd4 {[%clk 0:01:29]} 28. Rf3 {[%clk 0:01:29]}  Qe7 {[%clk 0:01:24]} 29. Qe3 {[%clk 0:01:22]}  Qc5 {[%clk 0:01:19]} 30. Qh6 {[%clk 0:01:01]}  Qf8 {[%clk 0:01:09]} 31. Qe3 {[%clk 0:01:01]}  Rcd8 {[%clk 0:01:08]} 32. Qe5 {[%clk 0:01:00]}  Nc6 {[%clk 0:01:04]} 33. Qc7 {[%clk 0:00:58]}  Rc8 {[%clk 0:01:03]} 34. Qg3 {[%clk 0:00:55]}  Rd7 {[%clk 0:01:01]} 35. Re1 {[%clk 0:00:52]}  Rcd8 {[%clk 0:00:58]} 36. Rxe6 {[%clk 0:00:45]}  Nd4 {[%clk 0:00:55]} 37. Rxa6 {[%clk 0:00:42]}  Ne2+ {[%clk 0:00:54]} 38. Kh2 {[%clk 0:00:42]}  Nxg3 {[%clk 0:00:55]} 39. Rxg3 {[%clk 0:00:43]} 0-1


[Site "https://www.chess.com"]

[Event "Titled Tuesday Blitz November 15 Early 2022"]
[White "Malka, Samuel"]
[Black "Csonka, Balazs"]
[WhiteFideId "20643675"]
[BlackFideId "742910"]
[WhiteElo "2474"]
[BlackElo "2404"]
[Result "0-1"]
[Round "06"]
[TimeControl "180+1"]
[Date "2022.11.16"]
[WhiteClock "0:00:11"]
[BlackClock "0:00:05"]

1. d4 {[%clk 0:03:00]}  Nf6 {[%clk 0:02:58]} 2. c4 {[%clk 0:03:00]}  e6 {[%clk 0:02:57]} 3. Nf3 {[%clk 0:02:59]}  b6 {[%clk 0:02:56]} 4. g3 {[%clk 0:02:57]}  Ba6 {[%clk 0:02:55]} 5. b3 {[%clk 0:02:56]}  Bb4+ {[%clk 0:02:53]} 6. Bd2 {[%clk 0:02:52]}  Be7 {[%clk 0:02:52]} 7. Bg2 {[%clk 0:02:51]}  d5 {[%clk 0:02:50]} 8. O-O {[%clk 0:02:47]}  O-O {[%clk 0:02:48]} 9. Qc2 {[%clk 0:02:34]}  Nbd7 {[%clk 0:02:26]} 10. Ne5 {[%clk 0:02:25]}  Bb7 {[%clk 0:01:46]} 11. cxd5 {[%clk 0:02:21]}  Nxe5 {[%clk 0:01:44]} 12. dxe5 {[%clk 0:02:15]}  Nxd5 {[%clk 0:01:44]} 13. a3 {[%clk 0:02:02]}  c5 {[%clk 0:01:39]} 14. Rd1 {[%clk 0:01:51]}  Qc8 {[%clk 0:01:32]} 15. Bc1 {[%clk 0:01:41]}  Rd8 {[%clk 0:01:14]} 16. Nd2 {[%clk 0:01:39]}  Nc7 {[%clk 0:01:08]} 17. Bb2 {[%clk 0:01:29]}  Bxg2 {[%clk 0:01:05]} 18. Kxg2 {[%clk 0:01:30]}  Qb7+ {[%clk 0:01:01]} 19. f3 {[%clk 0:01:29]}  Rd5 {[%clk 0:00:40]} 20. Nc4 {[%clk 0:01:21]}  Rad8 {[%clk 0:00:40]} 21. e4 {[%clk 0:01:07]}  R5d7 {[%clk 0:00:26]} 22. Rxd7 {[%clk 0:01:00]}  Rxd7 {[%clk 0:00:27]} 23. Rd1 {[%clk 0:01:00]}  Qc6 {[%clk 0:00:28]} 24. Rxd7 {[%clk 0:00:47]}  Qxd7 {[%clk 0:00:29]} 25. Qd2 {[%clk 0:00:47]}  Qxd2+ {[%clk 0:00:27]} 26. Nxd2 {[%clk 0:00:48]}  b5 {[%clk 0:00:25]} 27. Kf2 {[%clk 0:00:46]}  Kf8 {[%clk 0:00:25]} 28. Ke3 {[%clk 0:00:46]}  Ke8 {[%clk 0:00:26]} 29. f4 {[%clk 0:00:44]}  Kd7 {[%clk 0:00:24]} 30. g4 {[%clk 0:00:41]}  Kc6 {[%clk 0:00:21]} 31. Nf3 {[%clk 0:00:41]}  a5 {[%clk 0:00:18]} 32. f5 {[%clk 0:00:41]}  Ne8 {[%clk 0:00:10]} 33. g5 {[%clk 0:00:39]}  Bd8 {[%clk 0:00:08]} 34. h4 {[%clk 0:00:35]}  a4 {[%clk 0:00:07]} 35. bxa4 {[%clk 0:00:34]}  bxa4 {[%clk 0:00:08]} 36. Kd3 {[%clk 0:00:28]}  Nc7 {[%clk 0:00:06]} 37. h5 {[%clk 0:00:26]}  g6 {[%clk 0:00:07]} 38. fxg6 {[%clk 0:00:23]}  fxg6 {[%clk 0:00:06]} 39. hxg6 {[%clk 0:00:22]}  hxg6 {[%clk 0:00:07]} 40. Bc1 {[%clk 0:00:22]}  Na8 {[%clk 0:00:06]} 41. Nh4 {[%clk 0:00:22]}  Nb6 {[%clk 0:00:04]} 42. Nxg6 {[%clk 0:00:21]}  c4+ {[%clk 0:00:04]} 43. Kc3 {[%clk 0:00:21]}  Bc7 {[%clk 0:00:04]} 44. Nf8 {[%clk 0:00:18]}  Bxe5+ {[%clk 0:00:04]} 45. Kb4 {[%clk 0:00:16]}  Bd6+ {[%clk 0:00:03]} 46. Kc3 {[%clk 0:00:13]}  Bxf8 {[%clk 0:00:04]} 47. e5 {[%clk 0:00:12]}  Nd7 {[%clk 0:00:04]} 48. Bf4 {[%clk 0:00:12]}  Kd5 {[%clk 0:00:04]} 49. g6 {[%clk 0:00:12]}  Nxe5 {[%clk 0:00:04]} 50. Bxe5 {[%clk 0:00:10]}  Kxe5 {[%clk 0:00:05]} 51. Kxc4 {[%clk 0:00:10]}  Kf6 {[%clk 0:00:05]} 52. Kd4 {[%clk 0:00:10]}  Kxg6 {[%clk 0:00:05]} 53. Ke5 {[%clk 0:00:11]}  Kf7 {[%clk 0:00:05]} 0-1


[Site "https://www.chess.com"]